[Event "Budapest Spring Festival 2019"]
[Site "Budapest"]
[Date "2019.04.12"]
[Round "4.27"]
[White "Bhambure, Shantanu"]
[Black "Nguyen, Piotr"]
[Result "0-1"]
[ECO "A41"]
[WhiteElo "2261"]
[BlackElo "2427"]
[Annotator "NA"]
[PlyCount "70"]
[EventDate "2019.04.09"]
[EventType "swiss"]
[EventCountry "HUN"]
[SourceTitle "playchess.com"]
[Source "ChessBase"]
[SourceQuality "1"]
[TimeControl "40/5400+30:1800+30"]

1. d4 {[%emt 0:00:15]} d6 {[%emt 0:00:06]} 2. c4 {[%emt 0:00:08]} e5 {[%emt 0:00:05]} 3. d5 {[%emt 0:00:10]} Be7 {[%emt 0:03:47]} 4. Nc3 {[%emt 0:01:17]} a5 {[%emt 0:01:57]} 5. g3 {[%emt 0:04:07]} f5 {[%emt 0:01:55]} 6. Bg2 {[%emt 0:09:36] A41: 1 d4 d6: Tartakower System and Modern Defence} Nf6 {[%emt 0:04:54]} 7. Nf3 {[%emt 0:02:32]} O-O {[%emt 0:03:20]} 8. O-O {[%emt 0:02:17]} (8. e4 Na6 9. exf5 Bxf5 10. O-O Qd7 11. Ng5 Nc5 12. Be3 Ng4 13. Nge4 Nxe4 14. Nxe4 {1-0 (59) Ponkratov,P (2613)-Sjugirov,S (2650) Riadh 2017}) 8... Na6 {[%emt 0:05:18]} 9. b3 {[%emt 0:01:42]} Qe8 {[%emt 0:04:38]} 10. Ne1 $146 {[%emt 0:08:08]} ({Predecessor:} 10. Ba3 f4 11. gxf4 exf4 12. Nd4 Ng4 13. Qd3 {1-0 (44) Poobesh Anand,S (2329)-Akshayraj,K (2300) Negombo 2003}) 10... Bd7 {[%emt 0:04:36]} 11. e3 {[%emt 0:15:05]} h6 {[%emt 0:20:59]} 12. f4 {[%emt 0:07:53]} e4 {[%emt 0:01:03]} 13. Bb2 {[%emt 0:04:55]} g5 {[%emt 0:06:02]} 14. Ne2 {[%emt 0:05:05]} Qg6 {[%emt 0:05:17]} 15. Nd4 {[%emt 0:02:55]} Kh7 {[%emt 0:05:25]} 16. Bc3 {[%emt 0:08:29]} Nc5 {[%emt 0:02:09]} 17. a3 {[%emt 0:02:24]} gxf4 {[%emt 0:02:37]} 18. exf4 {[%emt 0:09:34]} h5 {[%emt 0:00:27]} 19. Ne2 {[%emt 0:02:22]} h4 {[%emt 0:02:32]} 20. b4 {[%emt 0:00:55]} Na4 {[%emt 0:02:09]} 21. Bd4 {[%emt 0:02:03]} b5 {[%emt 0:06:15]} 22. Nc2 {[%emt 0:02:49]} Nh5 {[%emt 0:02:49]} 23. gxh4 {[%emt 0:04:05]} Rg8 {[%emt 0:05:20]} 24. Ne3 {[%emt 0:00:05]} Nb6 {[%emt 0:00:10]} 25. Bxb6 $1 {[%emt 0:02:21]} cxb6 {[%emt 0:00:01]} 26. Rc1 {[%emt 0:01:03]} axb4 {[%emt 0:01:09]} 27. axb4 {[%emt 0:00:02]} Bxh4 {[%emt 0:03:13]} 28. Nd4 {[%emt 0:00:16]} Ra3 {[%emt 0:00:33]} 29. Ndc2 {[%emt 0:00:37]} Rd3 {[%emt 0:00:43]} 30. Qe2 {[%emt 0:00:05]} bxc4 {[%emt 0:00:43]} 31. Kh1 {[%emt 0:00:22]} Qh6 {[%emt 0:01:46]} 32. Nxf5 {[%emt 0:01:22]} Bxf5 {[%emt 0:00:15]} 33. Bxe4 {[%emt 0:00:04]} Ng3+ {[%emt 0:01:17]} 34. hxg3 {[%emt 0:00:05]} Bxg3+ {[%emt 0:00:06]} 35. Kg1 {[%emt 0:00:05]} Bh2+ {[%emt 0:00:45]} 0-1

[Event "Budapest Spring Festival 2019"]
[Site "Budapest"]
[Date "2019.04.12"]
[Round "4.28"]
[White "Prraneeth, Vuppala"]
[Black "Srinath, Rao S.V."]
[Result "1/2-1/2"]
[ECO "D71"]
[WhiteElo "2177"]
[BlackElo "2416"]
[Annotator "ChessBase"]
[PlyCount "112"]
[EventDate "2019.04.09"]
[EventType "swiss"]
[EventCountry "HUN"]
[SourceTitle "playchess.com"]
[Source "ChessBase"]
[SourceQuality "1"]
[TimeControl "40/5400+30:1800+30"]

1. d4 {[%emt 0:02:48]} Nf6 {[%emt 0:00:26]} 2. c4 {[%emt 0:00:07]} g6 {[%emt 0:00:10]} 3. g3 {[%emt 0:00:17]} c6 {[%emt 0:00:57]} 4. Bg2 {[%emt 0:00:34]} d5 {[%emt 0:00:05]} 5. Qa4 {[%emt 0:02:12]} dxc4 {[%emt 0:00:20]} 6. Qxc4 {[%emt 0:01:44]} Bg7 {[%emt 0:00:05]} 7. Nc3 {[%emt 0:02:02]} O-O {[%emt 0:00:12]} 8. Nf3 {[%emt 0:08:28]} Bf5 {[%emt 0:08:15]} 9. Qb3 {[%emt 0:04:16]} Qc8 {[%emt 0:00:50]} 10. O-O {[%emt 0:03:29]} Nbd7 {[%emt 0:02:12]} 11. Ng5 {[%emt 0:17:37]} h6 {[%emt 0:06:52]} 12. e4 {[%emt 0:00:13]} Bg4 {[%emt 0:00:28]} 13. Nf3 {[%emt 0:07:20]} Re8 {[%emt 0:03:45]} 14. Ne5 {[%emt 0:10:35]} Be6 {[%emt 0:02:23]} 15. Qc2 {[%emt 0:00:17]} c5 {[%emt 0:03:00]} 16. Nxd7 {[%emt 0:05:16]} cxd4 {[%emt 0:00:09]} 17. Nxf6+ {[%emt 0:00:24]} Bxf6 {[%emt 0:04:50]} 18. f4 {[%emt 0:02:30]} dxc3 {[%emt 0:00:52]} 19. e5 {[%emt 0:00:04]} Qc5+ {[%emt 0:06:16]} 20. Qf2 {[%emt 0:05:10]} Qxf2+ {[%emt 0:00:26]} 21. Rxf2 {[%emt 0:00:02]} Bg7 {[%emt 0:00:09]} 22. bxc3 {[%emt 0:10:14]} Rab8 {[%emt 0:00:32]} 23. Be3 {[%emt 0:00:53]} b6 {[%emt 0:04:32]} 24. a4 {[%emt 0:02:35]} Rec8 {[%emt 0:01:15]} 25. Bd4 {[%emt 0:00:12]} h5 {[%emt 0:07:40]} 26. h4 {[%emt 0:03:34]} Bf8 {[%emt 0:02:32]} 27. a5 {[%emt 0:02:15]} Bd7 {[%emt 0:03:29]} 28. axb6 {[%emt 0:01:40]} axb6 {[%emt 0:00:04]} 29. Ra7 {[%emt 0:01:05]} Bc6 {[%emt 0:01:32]} 30. f5 {[%emt 0:03:21]} Bxg2 {[%emt 0:01:09]} 31. Kxg2 {[%emt 0:00:05]} Rc6 {[%emt 0:00:49]} 32. e6 {[%emt 0:00:46]} f6 {[%emt 0:01:29]} 33. Re2 {[%emt 0:01:55]} Kg7 {[%emt 0:00:34]} 34. fxg6 {[%emt 0:00:37]} Kxg6 {[%emt 0:00:28]} 35. Kf3 {[%emt 0:00:07]} b5 {[%emt 0:00:48]} 36. g4 {[%emt 0:00:12]} hxg4+ 37. Kxg4 {[%emt 0:00:03]} b4 {[%emt 0:03:03]} 38. h5+ {[%emt 0:00:44]} Kg7 {[%emt 0:01:50]} 39. cxb4 {[%emt 0:01:57]} Rxb4 {[%emt 0:00:30]} 40. Rd7 {[%emt 0:00:00]} Rb5 {[%emt 0:00:00]} 41. Rd8 {[%emt 0:06:47]} Rc4 {[%emt 0:04:31]} 42. Re4 {[%emt 0:07:02]} Kg8 {[%emt 0:00:05]} 43. h6 {[%emt 0:00:35]} f5+ {[%emt 0:01:46]} 44. Kh5 {[%emt 0:00:02]} Kh7 {[%emt 0:00:29]} 45. Rf4 {[%emt 0:00:07]} Rxd4 {[%emt 0:02:38]} 46. Rfxd4 {[%emt 0:02:28]} Bxh6 {[%emt 0:00:09]} 47. R8d7 {[%emt 0:07:09]} f4+ {[%emt 0:01:49]} 48. Kg4 {[%emt 0:00:01]} Kg6 {[%emt 0:00:14]} 49. Rxe7 {[%emt 0:00:33]} Rb3 {[%emt 0:00:06]} 50. Rxf4 {[%emt 0:01:18]} Bxf4 {[%emt 0:00:05]} 51. Kxf4 {[%emt 0:00:04]} Kf6 {[%emt 0:00:07]} 52. Re8 {[%emt 0:00:08]} Rb4+ {[%emt 0:00:04]} 53. Kf3 {[%emt 0:00:16]} Rb6 {[%emt 0:00:13]} 54. e7 {[%emt 0:00:06]} Re6 {[%emt 0:00:13]} 55. Kf4 {[%emt 0:00:10]} Rxe7 {[%emt 0:00:02]} 56. Rxe7 {[%emt 0:00:06]} Kxe7 {[%emt 0:00:04]} 1/2-1/2

[Event "Budapest Spring Festival 2019"]
[Site "Budapest"]
[Date "2019.04.12"]
[Round "4.29"]
[White "Popovic, Dusan"]
[Black "Nandhidhaa, P V"]
[Result "1/2-1/2"]
[ECO "B48"]
[WhiteElo "2503"]
[BlackElo "2314"]
[Annotator "ChessBase"]
[PlyCount "78"]
[EventDate "2019.04.09"]
[EventType "swiss"]
[EventCountry "HUN"]
[SourceTitle "playchess.com"]
[Source "ChessBase"]
[SourceQuality "1"]
[TimeControl "40/5400+30:1800+30"]

1. e4 {[%emt 0:00:30]} c5 {[%emt 0:01:15]} 2. Nf3 {[%emt 0:00:06]} e6 {[%emt 0:00:05]} 3. d4 {[%emt 0:00:10]} cxd4 {[%emt 0:00:19]} 4. Nxd4 {[%emt 0:00:05]} Nc6 {[%emt 0:00:06]} 5. Nc3 {[%emt 0:00:05]} Qc7 {[%emt 0:00:05]} 6. Be3 {[%emt 0:00:10]} a6 {[%emt 0:00:14]} 7. a3 {[%emt 0:00:16]} Nf6 {[%emt 0:01:12]} 8. f4 {[%emt 0:04:35]} d6 {[%emt 0:01:17]} 9. Qf3 {[%emt 0:00:11]} Be7 {[%emt 0:01:27]} 10. O-O-O {[%emt 0:00:17]} O-O {[%emt 0:04:46]} 11. Be2 {[%emt 0:00:43]} Nxd4 {[%emt 0:02:13]} 12. Bxd4 {[%emt 0:01:53]} b5 {[%emt 0:03:30]} 13. g4 {[%emt 0:07:03]} Bb7 {[%emt 0:02:21]} 14. g5 {[%emt 0:00:49]} Nd7 {[%emt 0:01:36]} 15. Rhg1 {[%emt 0:03:14]} e5 {[%emt 0:05:25]} 16. Be3 {[%emt 0:03:03]} exf4 {[%emt 0:01:43]} 17. Qxf4 {[%emt 0:01:06]} Ne5 {[%emt 0:02:26]} 18. Kb1 {[%emt 0:10:00]} Rac8 {[%emt 0:03:56]} 19. Rg3 {[%emt 0:09:39]} Nc4 {[%emt 0:05:30]} 20. Bxc4 {[%emt 0:03:54]} Qxc4 {[%emt 0:05:44]} 21. Bd4 {[%emt 0:03:52]} Qe6 {[%emt 0:06:53]} 22. Bf6 {[%emt 0:12:08]} Rfe8 {[%emt 0:06:25]} 23. Bxe7 {[%emt 0:11:03]} Qxe7 {[%emt 0:00:49]} 24. Rxd6 {[%emt 0:02:17]} Rc4 {[%emt 0:12:33]} 25. Rgd3 {[%emt 0:04:37]} Bxe4 {[%emt 0:04:10]} 26. Re3 {[%emt 0:01:51]} h5 {[%emt 0:04:40]} 27. Kc1 {[%emt 0:04:34]} Qc7 {[%emt 0:08:23]} 28. Rxe4 {[%emt 0:04:42]} Rexe4 {[%emt 0:02:33]} 29. Nxe4 {[%emt 0:00:06]} Rxe4 {[%emt 0:00:14]} 30. Qxe4 {[%emt 0:00:15]} Qxd6 {[%emt 0:00:05]} 31. Qe8+ {[%emt 0:00:07]} Qf8 {[%emt 0:06:59]} 32. Qe5 {[%emt 0:04:10]} Qc8 {[%emt 0:01:39]} 33. b3 {[%emt 0:02:47]} Qc6 {[%emt 0:00:36]} 34. Kd2 {[%emt 0:00:51]} Kf8 {[%emt 0:00:53]} 35. Kd3 {[%emt 0:03:13]} Qf3+ {[%emt 0:01:07]} 36. Kd4 {[%emt 0:01:27]} Qd1+ {[%emt 0:00:44]} 37. Kc5 {[%emt 0:01:51]} Qxc2+ {[%emt 0:00:21]} 38. Kb4 {[%emt 0:00:42]} Qd2+ {[%emt 0:02:03]} 39. Kc5 {[%emt 0:00:04]} Qc2+ {[%emt 0:00:17]} 1/2-1/2

[Event "Budapest Spring Festival 2019"]
[Site "Budapest"]
[Date "2019.04.12"]
[Round "4.30"]
[White "Livaic, Leon"]
[Black "Budai, David"]
[Result "1-0"]
[ECO "E71"]
[WhiteElo "2474"]
[BlackElo "2308"]
[Annotator "ChessBase"]
[PlyCount "51"]
[EventDate "2019.04.09"]
[EventType "swiss"]
[EventCountry "HUN"]
[SourceTitle "playchess.com"]
[Source "ChessBase"]
[SourceQuality "1"]
[TimeControl "40/5400+30:1800+30"]

1. d4 {[%emt 0:00:01]} Nf6 {[%emt 0:07:44]} 2. c4 {[%emt 0:00:10]} g6 {[%emt 0:00:14]} 3. Nc3 {[%emt 0:00:25]} Bg7 {[%emt 0:00:05]} 4. e4 {[%emt 0:00:05]} d6 {[%emt 0:00:03]} 5. h3 {[%emt 0:00:34]} O-O {[%emt 0:00:15]} 6. Be3 {[%emt 0:00:04]} Na6 {[%emt 0:01:09]} 7. g4 {[%emt 0:00:19]} e5 {[%emt 0:00:33]} 8. d5 {[%emt 0:00:21]} Nc5 {[%emt 0:00:15]} 9. f3 {[%emt 0:01:15]} a5 {[%emt 0:03:03]} 10. Qd2 {[%emt 0:00:25]} a4 {[%emt 0:11:23]} 11. Nge2 {[%emt 0:00:35]} c6 {[%emt 0:01:06]} 12. Ng3 {[%emt 0:00:45]} cxd5 {[%emt 0:00:23]} 13. cxd5 {[%emt 0:00:05]} Qa5 {[%emt 0:00:33]} 14. Nb5 {[%emt 0:09:03]} Qb6 {[%emt 0:07:51]} 15. Rc1 {[%emt 0:01:57]} Nfd7 {[%emt 0:04:03]} 16. h4 {[%emt 0:01:52]} h5 {[%emt 0:12:29]} 17. gxh5 {[%emt 0:04:54]} f5 {[%emt 0:00:05]} 18. h6 {[%emt 0:05:58]} Bh8 {[%emt 0:01:53]} 19. h7+ {[%emt 0:04:02]} Kxh7 {[%emt 0:03:12]} 20. h5 {[%emt 0:00:05]} f4 {[%emt 0:00:15]} 21. hxg6+ {[%emt 0:00:04]} Kxg6 {[%emt 0:00:06]} 22. Nf5 {[%emt 0:01:10]} Rxf5 {[%emt 0:07:27]} 23. exf5+ {[%emt 0:00:08]} Kf7 {[%emt 0:00:58]} 24. Rxh8 {[%emt 0:03:05]} fxe3 {[%emt 0:00:27]} 25. Qg2 {[%emt 0:00:13]} Nf8 {[%emt 0:00:29]} 26. Qg8+ {[%emt 0:00:06]} 1-0

[Event "Budapest Spring Festival 2019"]
[Site "Budapest"]
[Date "2019.04.12"]
[Round "4.31"]
[White "Torma, Robert"]
[Black "Polyik, Peter"]
[Result "0-1"]
[ECO "B40"]
[WhiteElo "2463"]
[BlackElo "2303"]
[Annotator "ChessBase"]
[PlyCount "141"]
[EventDate "2019.04.09"]
[EventType "swiss"]
[EventCountry "HUN"]
[SourceTitle "playchess.com"]
[Source "ChessBase"]
[SourceQuality "1"]
[TimeControl "40/5400+30:1800+30"]

1. e4 {[%emt 0:00:04]} c5 {[%emt 0:00:19]} 2. Nf3 {[%emt 0:00:07]} e6 {[%emt 0:00:07]} 3. g3 {[%emt 0:00:04]} d5 {[%emt 0:00:27]} 4. exd5 {[%emt 0:00:27]} exd5 {[%emt 0:00:06]} 5. d4 {[%emt 0:00:08]} Nc6 {[%emt 0:00:05]} 6. Bg2 {[%emt 0:00:53]} Bg4 {[%emt 0:00:07]} 7. O-O {[%emt 0:00:44]} cxd4 {[%emt 0:00:30]} 8. Nbd2 {[%emt 0:02:14]} Be7 {[%emt 0:01:33]} 9. h3 {[%emt 0:10:55]} Bh5 {[%emt 0:07:36]} 10. Nb3 {[%emt 0:01:25]} Bxf3 {[%emt 0:12:52]} 11. Qxf3 {[%emt 0:13:51]} Nf6 {[%emt 0:00:21]} 12. Bg5 {[%emt 0:19:18]} O-O {[%emt 0:01:01]} 13. Rad1 {[%emt 0:00:51]} Rc8 {[%emt 0:02:31]} 14. Rfe1 {[%emt 0:06:31]} h6 {[%emt 0:04:32]} 15. Bxf6 {[%emt 0:03:21]} Bxf6 {[%emt 0:00:07]} 16. Qxd5 {[%emt 0:08:04]} Qxd5 {[%emt 0:02:29]} 17. Bxd5 {[%emt 0:00:04]} Nb4 {[%emt 0:00:33]} 18. Be4 {[%emt 0:17:19]} Nxc2 {[%emt 0:08:24]} 19. Re2 {[%emt 0:00:04]} Nb4 {[%emt 0:00:28]} 20. a3 {[%emt 0:05:48]} Nc6 {[%emt 0:01:19]} 21. Nc5 {[%emt 0:04:05]} Ne5 {[%emt 0:11:24]} 22. Nxb7 {[%emt 0:00:28]} Rc7 {[%emt 0:01:02]} 23. Na5 {[%emt 0:01:41]} Rb8 {[%emt 0:03:42]} 24. f4 {[%emt 0:01:04]} Ng6 {[%emt 0:09:05]} 25. b4 {[%emt 0:02:10]} Rc3 {[%emt 0:00:38]} 26. Rd3 {[%emt 0:00:42]} Rbc8 {[%emt 0:01:39]} 27. Red2 {[%emt 0:00:11]} Re8 {[%emt 0:00:41]} 28. Bf5 {[%emt 0:00:47]} Re3 {[%emt 0:00:49]} 29. Rxe3 {[%emt 0:00:39]} dxe3 {[%emt 0:01:59]} 30. Rc2 {[%emt 0:00:19]} Rxa3 {[%emt 0:01:35]} 31. Nc6 {[%emt 0:00:04]} h5 {[%emt 0:01:07]} 32. h4 {[%emt 0:00:26]} Nf8 {[%emt 0:06:38]} 33. Kg2 {[%emt 0:00:20]} g6 {[%emt 0:00:10]} 34. Be4 {[%emt 0:00:32]} Ne6 {[%emt 0:00:34]} 35. Bf3 {[%emt 0:00:42]} Kg7 {[%emt 0:01:26]} 36. Be2 {[%emt 0:00:13]} Nc7 {[%emt 0:02:16]} 37. b5 {[%emt 0:00:24]} Nd5 {[%emt 0:02:23]} 38. Bc4 {[%emt 0:00:55]} e2 {[%emt 0:00:50]} 39. Rxe2 {[%emt 0:00:12]} Ne3+ {[%emt 0:00:07]} 40. Rxe3 {[%emt 0:00:00]} Rxe3 {[%emt 0:00:00]} 41. Nxa7 {[%emt 0:00:18]} Rc3 {[%emt 0:02:27]} 42. Be2 {[%emt 0:03:57]} Ra3 {[%emt 0:04:37]} 43. Nc6 {[%emt 0:01:03]} Bc3 {[%emt 0:00:18]} 44. Kf2 {[%emt 0:04:51]} Ra1 {[%emt 0:05:59]} 45. Ne5 {[%emt 0:06:45]} Bxe5 {[%emt 0:08:29]} 46. fxe5 {[%emt 0:00:15]} Ra3 {[%emt 0:01:14]} 47. Bc4 {[%emt 0:05:02]} Rc3 {[%emt 0:00:12]} 48. Bd5 {[%emt 0:00:48]} Rd3 {[%emt 0:03:38]} 49. Bc4 {[%emt 0:02:47]} Rd4 {[%emt 0:00:51]} 50. Be2 {[%emt 0:00:28]} Re4 {[%emt 0:00:57]} 51. Bd3 {[%emt 0:01:06]} Rxe5 {[%emt 0:05:40]} 52. b6 {[%emt 0:00:04]} Re6 {[%emt 0:01:01]} 53. b7 {[%emt 0:00:09]} Rb6 {[%emt 0:00:03]} 54. Be4 {[%emt 0:00:05]} Kf6 {[%emt 0:05:07]} 55. Bd5 {[%emt 0:01:01]} Rb4 {[%emt 0:00:28]} 56. Kf3 {[%emt 0:01:20]} Ke7 {[%emt 0:00:46]} 57. Ke3 {[%emt 0:01:46]} f6 {[%emt 0:02:33]} 58. Kf2 {[%emt 0:00:11]} Kd6 {[%emt 0:01:30]} 59. Be4 {[%emt 0:02:02]} f5 {[%emt 0:00:09]} 60. Bf3 {[%emt 0:00:13]} Ke5 {[%emt 0:00:04]} 61. Bc6 {[%emt 0:03:37]} f4 {[%emt 0:00:42]} 62. Kg2 {[%emt 0:01:23]} Rb2+ {[%emt 0:00:24]} 63. Kh3 {[%emt 0:00:11]} Rb3 {[%emt 0:00:41]} 64. Kh2 {[%emt 0:00:05]} fxg3+ {[%emt 0:00:17]} 65. Kh3 {[%emt 0:00:06]} Kf4 {[%emt 0:00:35]} 66. Bd5 {[%emt 0:00:59]} Rb2 {[%emt 0:02:50]} 67. Bg2 {[%emt 0:00:04]} Rb6 {[%emt 0:01:22]} 68. Bc6 {[%emt 0:01:03]} g2 {[%emt 0:00:44]} 69. Kxg2 {[%emt 0:01:06]} Kg4 {[%emt 0:00:05]} 70. Be4 {[%emt 0:00:21]} Kxh4 {[%emt 0:00:06]} 71. Bd5 0-1

[Event "Budapest Spring Festival 2019"]
[Site "Budapest"]
[Date "2019.04.12"]
[Round "4.32"]
[White "Bayramov, Zaur"]
[Black "Shagbazyan, Taron"]
[Result "1/2-1/2"]
[ECO "A47"]
[WhiteElo "2301"]
[BlackElo "2429"]
[Annotator "NA"]
[PlyCount "152"]
[EventDate "2019.04.09"]
[EventType "swiss"]
[EventCountry "HUN"]
[SourceTitle "playchess.com"]
[Source "ChessBase"]
[SourceQuality "1"]
[TimeControl "40/5400+30:1800+30"]

1. d4 {[%emt 0:00:03]} Nf6 {[%emt 0:04:00]} 2. Nf3 {[%emt 0:00:21]} b6 {[%emt 0:00:37]} 3. Bf4 {[%emt 0:00:30]} Bb7 {[%emt 0:00:11]} 4. Nbd2 {[%emt 0:00:31]} g6 {[%emt 0:00:39]} 5. c3 {[%emt 0:01:01]} Bg7 {[%emt 0:02:20]} 6. Qc2 {[%emt 0:00:13]} c5 {[%emt 0:05:01]} 7. e3 {[%emt 0:04:51]} O-O {[%emt 0:02:15]} 8. Be2 {[%emt 0:00:25]} d6 {[%emt 0:01:26]} 9. h3 {[%emt 0:00:32]} Nbd7 {[%emt 0:01:33]} 10. O-O {[%emt 0:00:57]} Qc7 {[%emt 0:01:06]} 11. Bh2 {[%emt 0:03:51]} Rac8 {[%emt 0:10:00] A48: 1 d4 Nf6 2 Nf3 g6: Torre, London and Colle Systems} 12. Rfe1 {[%emt 0:04:54]} (12. Rfc1 Qb8 13. Qd1 Qa8 14. Qf1 Ne4 15. Ba6 Nxd2 16. Nxd2 cxd4 17. cxd4 Rxc1 18. Rxc1 Rc8 19. Bxb7 Qxb7 20. Rxc8+ {½-½ (20) Krivoshey,S (2471)-Gladyszev,O (2426) Elets 2014}) 12... a6 {[%emt 0:06:33]} 13. a4 {[%emt 0:01:04]} Qb8 {[%emt 0:00:29]} 14. Bd3 $146 {[%emt 0:07:05]} ({Predecessor:} 14. Qb3 Qa8 15. Rec1 Ne4 16. Nxe4 Bxe4 17. Ne1 Qb7 18. f3 Bc6 19. Bg3 Bh6 20. Bf2 e5 {0-1 (34) Jezek,J (2171)-Jurek,J (2248) Plzen 2018}) 14... Qa8 {[%emt 0:04:59]} 15. Qb1 {[%emt 0:00:43]} cxd4 {[%emt 0:24:58]} 16. exd4 {[%emt 0:02:41]} Rfe8 {[%emt 0:00:49]} 17. Qa2 {[%emt 0:06:57]} Bh6 {[%emt 0:07:54]} 18. Bf1 {[%emt 0:07:43]} Nd5 {[%emt 0:05:27]} 19. Qb3 {[%emt 0:15:05]} Nf4 {[%emt 0:03:09]} 20. Bxf4 {[%emt 0:15:29]} Bxf4 {[%emt 0:00:04]} 21. Qc2 {[%emt 0:03:02]} Nf6 {[%emt 0:09:44]} 22. Be2 {[%emt 0:03:51]} Bh6 {[%emt 0:02:49]} 23. Nc4 {[%emt 0:06:07]} Qa7 {[%emt 0:00:44]} 24. Qb3 {[%emt 0:00:53]} Nd5 {[%emt 0:02:02]} 25. Nfd2 {[%emt 0:00:20]} Bxd2 {[%emt 0:01:36]} 26. Nxd2 {[%emt 0:00:06]} Nf4 {[%emt 0:00:33]} 27. Bf3 {[%emt 0:00:31]} Bxf3 {[%emt 0:00:12]} 28. Nxf3 {[%emt 0:00:09]} Qb7 {[%emt 0:00:47]} 29. Re3 {[%emt 0:05:19]} b5 {[%emt 0:00:55]} 30. axb5 {[%emt 0:00:49]} axb5 {[%emt 0:00:04]} 31. Ra5 {[%emt 0:00:28]} Rb8 {[%emt 0:00:04]} 32. Kh2 {[%emt 0:03:03]} Qd5 {[%emt 0:01:22]} 33. Qxd5 {[%emt 0:00:25]} Nxd5 {[%emt 0:00:02]} 34. Re1 {[%emt 0:00:18]} e6 {[%emt 0:01:35]} 35. Nd2 {[%emt 0:01:18]} Rb6 {[%emt 0:00:36]} 36. c4 {[%emt 0:00:48]} Nc7 {[%emt 0:00:26]} 37. c5 {[%emt 0:00:22]} dxc5 {[%emt 0:00:25]} 38. dxc5 {[%emt 0:00:01]} Ra6 {[%emt 0:00:16]} 39. Rea1 {[%emt 0:05:29]} Rea8 {[%emt 0:00:05]} 40. Nb3 {[%emt 0:00:00]} Kf8 {[%emt 0:00:00]} 41. Kg3 {[%emt 0:05:10]} Ke7 {[%emt 0:06:18]} 42. Kf4 {[%emt 0:10:12]} Rxa5 43. Rxa5 {[%emt 0:03:20]} Rxa5 {[%emt 0:08:05]} 44. Nxa5 {[%emt 0:00:07]} f6 {[%emt 0:00:20]} 45. Ke4 {[%emt 0:08:50]} Na6 {[%emt 0:03:55]} 46. Kd4 {[%emt 0:00:52]} (46. Nb3 $11) 46... e5+ {[%emt 0:00:18]} 47. Kd5 $17 {[%emt 0:02:26] [#]} Nb4+ $1 {[%emt 0:00:02]} 48. Ke4 {[%emt 0:00:06]} Ke6 {[%emt 0:00:01]} 49. g4 {[%emt 0:01:13]} f5+ {[%emt 0:00:43]} 50. gxf5+ {[%emt 0:00:05]} gxf5+ {[%emt 0:00:02]} 51. Ke3 {[%emt 0:01:01]} Kd5 {[%emt 0:06:23]} 52. f4 {[%emt 0:00:47]} Kxc5 {[%emt 0:01:58]} 53. fxe5 {[%emt 0:00:28]} Kd5 {[%emt 0:00:01]} 54. e6 {[%emt 0:01:53]} Kxe6 {[%emt 0:00:08]} 55. Kd4 {[%emt 0:00:30]} h5 {[%emt 0:02:13]} 56. h4 {[%emt 0:00:40]} Nc2+ {[%emt 0:04:19]} 57. Kc3 {[%emt 0:01:38]} Ne3 {[%emt 0:00:49]} 58. Kd3 {[%emt 0:00:25]} Ng2 {[%emt 0:00:37]} 59. Nc6 {[%emt 0:00:43]} Kd5 {[%emt 0:03:06]} 60. Ne7+ {[%emt 0:00:15]} Ke5 {[%emt 0:00:02]} 61. Nc6+ {[%emt 0:00:25]} Kf4 {[%emt 0:00:37]} 62. Nd4 {[%emt 0:00:38]} b4 {[%emt 0:00:00]} 63. Nc2 {[%emt 0:00:18]} b3 {[%emt 0:00:14]} 64. Nd4 {[%emt 0:00:18]} Nxh4 {[%emt 0:00:49]} 65. Nxb3 {[%emt 0:00:04]} Nf3 {[%emt 0:00:50]} 66. Ke2 {[%emt 0:01:10]} Kg3 {[%emt 0:00:16]} 67. Kf1 {[%emt 0:00:58]} h4 {[%emt 0:00:30]} 68. Nc1 {[%emt 0:00:20]} Nd4 {[%emt 0:00:28]} 69. b4 {[%emt 0:00:11]} h3 {[%emt 0:00:30]} 70. Kg1 {[%emt 0:00:17]} f4 {[%emt 0:01:57]} 71. Nd3 {[%emt 0:00:24]} h2+ {[%emt 0:01:28]} 72. Kh1 {[%emt 0:00:06]} f3 {[%emt 0:00:24]} 73. Nc5 {[%emt 0:00:13]} Nf5 {[%emt 0:00:47]} 74. Ne4+ {[%emt 0:01:46]} Kf4 {[%emt 0:00:25]} 75. Nf2 {[%emt 0:00:07]} Ke3 {[%emt 0:00:29]} 76. Nh3 {[%emt 0:00:50]} Kd4 {[%emt 0:00:33]} 1/2-1/2

[Event "Budapest Spring Festival 2019"]
[Site "Budapest"]
[Date "2019.04.12"]
[Round "4.33"]
[White "Horvath, Dominik"]
[Black "Urhegyi, Marton"]
[Result "1/2-1/2"]
[ECO "D37"]
[WhiteElo "2412"]
[BlackElo "2299"]
[Annotator "ChessBase"]
[PlyCount "75"]
[EventDate "2019.04.09"]
[EventType "swiss"]
[EventCountry "HUN"]
[SourceTitle "playchess.com"]
[Source "ChessBase"]
[SourceQuality "1"]
[TimeControl "40/5400+30:1800+30"]

1. d4 {[%emt 0:00:12]} d5 {[%emt 0:00:18]} 2. Nf3 {[%emt 0:00:13]} Nf6 {[%emt 0:00:05]} 3. c4 {[%emt 0:00:04]} e6 {[%emt 0:04:48]} 4. Nc3 {[%emt 0:01:24]} Be7 {[%emt 0:00:42]} 5. Bf4 {[%emt 0:01:10]} O-O {[%emt 0:00:57]} 6. e3 {[%emt 0:00:04]} b6 {[%emt 0:02:03]} 7. Bd3 {[%emt 0:01:21]} Bb7 {[%emt 0:00:53]} 8. cxd5 {[%emt 0:04:24]} exd5 {[%emt 0:04:22]} 9. O-O {[%emt 0:05:44]} Nbd7 {[%emt 0:04:59]} 10. Rc1 {[%emt 0:09:43]} c5 {[%emt 0:02:26]} 11. Ne5 {[%emt 0:06:38]} Nxe5 {[%emt 0:21:16]} 12. Bxe5 {[%emt 0:00:20]} Nd7 {[%emt 0:05:23]} 13. Bf4 {[%emt 0:06:25]} a6 {[%emt 0:12:26]} 14. Qf3 {[%emt 0:10:07]} Kh8 {[%emt 0:06:07]} 15. Rfd1 {[%emt 0:05:35]} cxd4 {[%emt 0:04:34]} 16. exd4 {[%emt 0:01:49]} Re8 {[%emt 0:02:50]} 17. Na4 {[%emt 0:04:57]} Rc8 {[%emt 0:05:10]} 18. Rxc8 {[%emt 0:16:49]} Qxc8 {[%emt 0:00:17]} 19. Rc1 {[%emt 0:03:05]} Bc6 {[%emt 0:00:41]} 20. Bf5 {[%emt 0:00:47]} Qb7 {[%emt 0:04:35]} 21. Nc3 {[%emt 0:01:21]} Bf6 {[%emt 0:01:17]} 22. Qd3 {[%emt 0:00:50]} Nf8 {[%emt 0:01:05]} 23. h3 {[%emt 0:01:12]} b5 {[%emt 0:04:56]} 24. b4 {[%emt 0:03:32]} Bd7 {[%emt 0:01:30]} 25. Bxd7 {[%emt 0:00:49]} Qxd7 {[%emt 0:02:04]} 26. Qf3 {[%emt 0:01:33]} Ne6 {[%emt 0:01:36]} 27. Be3 {[%emt 0:02:48]} Bxd4 {[%emt 0:05:10]} 28. Qxd5 {[%emt 0:00:54]} Qxd5 {[%emt 0:00:37]} 29. Nxd5 {[%emt 0:00:05]} Rd8 {[%emt 0:00:40]} 30. Bxd4 {[%emt 0:01:57]} Nxd4 {[%emt 0:00:32]} 31. Rc7 {[%emt 0:02:29]} Ne6 {[%emt 0:00:33]} 32. Re7 {[%emt 0:00:03]} g6 {[%emt 0:00:32]} 33. Nf6 {[%emt 0:01:24]} Kg7 {[%emt 0:00:29]} 34. Ng4 {[%emt 0:00:02]} Rd2 {[%emt 0:00:32]} 35. a3 {[%emt 0:01:08]} h5 {[%emt 0:00:32]} 36. Ne5 {[%emt 0:02:24]} Kf6 {[%emt 0:00:26]} 37. Rd7 {[%emt 0:00:03]} Rxd7 {[%emt 0:00:35]} 38. Nxd7+ {Ke5} 1/2-1/2